bitfinex-derivatives/quotes_SOLF0:USTF0_20250310
["timestamp","ask_amount","ask_price","bid_price","bid_amount"]
[1741594174542,0.05757534,127.46,127.41,28.96]
[1741594174737,7.90307534,127.46,127.41,36.8079]
[1741594175134,0.05757534,127.46,127.41,28.96]
[1741594175538,0.05757534,127.46,127.42,7.8475]
[1741594175939,0.05757534,127.46,127.41,28.96]
[1741594176142,7.90307534,127.46,127.41,36.8081]
[1741594176443,0.05757534,127.46,127.41,28.96]
[1741594176644,0.05757534,127.46,127.42,7.8475]
[1741594177237,0.05757534,127.46,127.41,28.96]
[1741594177844,0.05757534,127.46,127.42,7.8475]
[1741594181448,0.05757534,127.46,127.44,19.9432348]
[1741594181648,258.68,127.49,127.45,28.86]
[1741594181847,258.68,127.49,127.46,19.9432348]
[1741594182047,258.68,127.49,127.46,21.9413348]
[1741594182642,258.68,127.49,127.48,7.8442]
[1741594182842,258.73440197,127.49,127.48,36.7242]
[1741594183851,1.97e-06,127.49,127.48,56.6674348]
[1741594184148,258.82,127.55,127.48,50.26386148]
[1741594184346,258.82,127.55,127.52,19.9432348]
[1741594184548,258.82,127.55,127.53,36.7006]
[1741594184850,258.82,127.55,127.53,28.86]
[1741594185245,258.87585233,127.55,127.53,28.90946194]
[1741594186247,258.87585233,127.55,127.53,36.75036194]
[1741594186845,258.87585233,127.55,127.54,7.8405]
[1741594187443,0.05585233,127.55,127.54,27.7837348]
[1741594187647,260.8934,127.61,127.54,19.9432348]
[1741594187847,260.8934,127.61,127.57,7.8384]
[1741594188046,260.8934,127.61,127.58,28.82]
[1741594188756,258.8,127.61,127.58,28.82]
[1741594188953,258.85403115,127.61,127.58,28.87111605]
[1741594189949,258.85403115,127.61,127.58,36.70871605]
[1741594190151,258.85403115,127.61,127.58,28.87111605]
[1741594191452,266.69053115,127.61,127.58,28.87111605]
[1741594192158,258.85403115,127.61,127.58,28.87111605]
[1741594192656,266.69043115,127.61,127.58,28.87111605]
[1741594194459,258.85403115,127.61,127.58,36.70871605]
[1741594194958,258.85403115,127.61,127.59,7.8369]
[1741594195159,258.85403115,127.61,127.58,48.81435085]
[1741594195362,258.85403115,127.61,127.6,19.9432348]
[1741594195661,258.85403115,127.61,127.6,27.7800348]
[1741594196049,258.64,127.68,127.65,7.8337]
[1741594196254,258.64,127.68,127.66,28.82]
[1741594197355,258.69779166,127.68,127.66,28.87069215]
[1741594197757,258.69779166,127.68,127.66,0.05069215]
[1741594198854,266.52999166,127.68,127.66,0.05069215]
[1741594199958,7.8343,127.64,127.61,28.8]
[1741594200159,278.5832348,127.68,127.61,28.8]
[1741594200366,258.64,127.68,127.62,19.9432348]
[1741594200758,258.64,127.68,127.61,28.8]
[1741594201064,0.05305581,127.66,127.63,0.05280913]
[1741594201264,0.05305581,127.66,127.64,48.9032348]
[1741594201665,0.05305581,127.66,127.64,28.96]
[1741594202065,7.88655581,127.66,127.64,28.96]
[1741594203962,0.05305581,127.66,127.64,28.96]
[1741594204874,7.8337,127.65,127.63,0.05280913]
[1741594205372,7.88645581,127.66,127.63,0.05280913]
[1741594205869,0.05305581,127.66,127.63,0.05280913]
[1741594206765,7.8343,127.64,127.63,0.05280913]
[1741594208470,7.8361,127.62,127.59,28.92]
[1741594208777,21.8785348,127.65,127.59,28.92]
[1741594209573,0.05932927,127.63,127.61,0.05781182]
[1741594209972,7.8359,127.62,127.61,0.05781182]
[1741594210581,0.05932927,127.63,127.61,28.95781182]
[1741594212678,7.89432927,127.63,127.61,28.95781182]
[1741594213174,0.05932927,127.63,127.61,28.95781182]
[1741594213777,0.05932927,127.63,127.61,36.79371182]
[1741594213972,0.05932927,127.63,127.61,28.95781182]
[1741594214770,7.89432927,127.63,127.61,28.95781182]
[1741594215166,0.05932927,127.63,127.61,28.95781182]
[1741594215772,0.05932927,127.63,127.61,36.79391182]
[1741594216280,0.05932927,127.63,127.61,28.95781182]
[1741594216473,0.05932927,127.63,127.62,7.8356]
[1741594217079,0.05932927,127.63,127.61,36.79351182]
[1741594217772,0.05932927,127.63,127.61,28.95781182]
[1741594220382,0.05932927,127.63,127.61,0.05781182]
[1741594220783,0.05932927,127.63,127.58,28.84]
[1741594221177,0.05932927,127.63,127.56,56.6223348]
[1741594221479,0.05932927,127.63,127.55,9.7965]
[1741594221677,48.7832348,127.63,127.56,28.84]
[1741594221872,2.0388,127.62,127.58,0.05084763]
[1741594222173,0.05224135,127.61,127.58,0.05084763]
[1741594223085,0.05224135,127.61,127.59,7.837]
[1741594223284,0.05224135,127.61,127.59,36.677]
[1741594223686,0.05224135,127.61,127.59,28.84]
[1741594228687,0.05224135,127.61,127.6,27.7800348]
[1741594231591,258.48,127.69,127.6,23.8632348]
[1741594231796,258.48,127.69,127.64,19.9432348]
[1741594231987,258.48,127.69,127.65,28.78]
[1741594232184,258.48,127.69,127.68,19.9432348]
[1741594232395,258.48,127.69,127.68,48.7232348]
[1741594232592,258.48,127.69,127.68,28.78]
[1741594236102,258.48,127.69,127.68,36.6119]
[1741594236602,258.48,127.69,127.68,56.5551348]
[1741594238205,258.48,127.69,127.68,48.7232348]
[1741594238909,258.48,127.69,127.68,56.5551348]
[1741594240405,283.38,127.75,127.68,68.6664696]
[1741594240610,283.38,127.75,127.71,19.9432348]
[1741594240815,283.38,127.75,127.73,7.8283]
[1741594241306,283.38,127.75,127.72,36.549]
[1741594241606,283.43577542,127.75,127.72,28.77521967]
[1741594241811,283.43577542,127.75,127.72,28.75521967]
[1741594242512,291.26367542,127.75,127.72,28.75521967]
[1741594243112,7.8282,127.74,127.72,28.75521967]
[1741594244113,283.43577542,127.75,127.72,0.05521967]
[1741594246714,283.43577542,127.75,127.72,7.88421967]
[1741594247411,283.43577542,127.75,127.74,7.8282]
[1741594247609,283.43577542,127.75,127.74,36.4682]
[1741594248212,283.43577542,127.75,127.72,28.71521967]
[1741594249214,283.43577542,127.75,127.73,19.9432348]
[1741594249508,25.05577542,127.75,127.73,21.8768348]
[1741594249705,25.05577542,127.75,127.74,7.8282]
[1741594252416,25.05577542,127.75,127.73,21.8768348]
[1741594253605,25.05577542,127.75,127.73,29.7053348]
[1741594254820,25.05577542,127.75,127.72,28.71521967]
[1741594255409,25.05577542,127.75,127.73,28.6]
[1741594255918,25.05577542,127.75,127.73,36.4285]
[1741594256113,25.05577542,127.75,127.73,48.5432348]
[1741594256623,258.3,127.81,127.73,50.5296348]
[1741594256811,258.3,127.81,127.76,19.9432348]
[1741594257018,258.3,127.81,127.77,28.62]
[1741594257624,258.3,127.81,127.78,7.8254]
[1741594257817,0.04998268,127.8,127.78,7.87986202]
[1741594258817,0.04998268,127.8,127.78,0.05446202]
[1741594260219,0.04998268,127.8,127.73,1.9864]
[1741594260220,7.8255,127.79,127.75,28.58]
[1741594260427,9.8407,127.79,127.75,28.58]
[1741594260622,2.0152,127.79,127.75,28.58]
[1741594260930,2.0152,127.79,127.69,211.9432348]
[1741594261224,2.0152,127.79,127.76,0.05637708]
[1741594261414,0.05284134,127.75,127.69,19.9432348]
[1741594261616,2.0152,127.79,127.7,28.62]
[1741594261816,2.0152,127.79,127.7,36.4504]
[1741594262014,7.8273,127.76,127.7,28.62]
[1741594262417,2.0152,127.79,127.7,28.62]
[1741594262418,2.0152,127.79,127.71,7.8299]
[1741594262618,0.04955857,127.74,127.72,0.05736079]
[1741594262814,7.8276,127.76,127.72,0.05736079]
[1741594263021,0.05350451,127.74,127.72,0.05736079]
[1741594263215,19.9432348,127.78,127.72,0.05736079]
[1741594263425,7.8288,127.73,127.7,28.6]
[1741594263719,258.22,127.73,127.68,28.62]
[1741594263919,9.8829,127.72,127.68,28.62]
[1741594264120,2.053,127.72,127.67,7.8322]
[1741594264328,2.053,127.72,127.68,28.62]
[1741594264530,0.05953029,127.71,127.68,28.67469811]
[1741594265122,0.05953029,127.71,127.68,0.05469811]
[1741594265322,0.05953029,127.71,127.66,36.4729]
[1741594265718,0.05953029,127.71,127.66,28.64]
[1741594265719,7.831,127.7,127.66,28.64]
[1741594265927,7.831,127.7,127.65,28.62]
[1741594266428,0.05167853,127.69,127.65,28.62]
[1741594267323,7.88297853,127.69,127.65,28.6]
[1741594267523,0.05167853,127.69,127.65,28.6]
[1741594268627,7.88347853,127.69,127.65,28.6]
[1741594268825,0.05167853,127.69,127.65,28.6]
[1741594269326,0.05167853,127.69,127.65,36.4334]
[1741594269831,7.8319,127.68,127.65,36.4334]
[1741594270033,7.8319,127.68,127.65,28.6]
[1741594270329,0.05167853,127.69,127.63,22.0697348]
[1741594270330,0.05167853,127.69,127.63,48.5432348]
[1741594270527,7.8332,127.66,127.61,19.9432348]
[1741594270733,2.0377,127.67,127.62,36.4353]
[1741594270922,0.05366963,127.65,127.62,36.4353]
[1741594271129,258.33366963,127.65,127.61,19.9432348]
[1741594271834,266.16766963,127.65,127.61,19.9432348]
[1741594272132,266.16766963,127.65,127.61,27.7792348]
[1741594272334,266.16766963,127.65,127.61,19.9432348]
[1741594272727,258.33366963,127.65,127.61,19.9432348]
[1741594272930,258.33366963,127.65,127.59,30.5266]
[1741594273126,258.33366963,127.65,127.6,19.9432348]
[1741594273333,266.16746963,127.65,127.6,27.7796348]
[1741594274341,7.8344,127.64,127.59,28.58]
[1741594274634,258.33366963,127.65,127.6,28.58]
[1741594274838,258.33366963,127.65,127.59,28.6]
[1741594274839,7.8356,127.62,127.59,28.6]
[1741594275033,0.05780947,127.64,127.59,28.6]
[1741594275246,20.00104427,127.64,127.59,28.62]
[1741594275434,7.8359,127.62,127.59,28.62]
[1741594276039,7.8352,127.63,127.59,28.62]
[1741594276837,20.00104427,127.64,127.59,28.62]
[1741594277038,7.8357,127.62,127.59,28.62]
[1741594277341,2.0011,127.61,127.59,28.62]
[1741594277541,2.0011,127.61,127.58,7.838]
[1741594277734,2.05074495,127.61,127.58,7.838]
[1741594277929,2.05074495,127.61,127.57,28.58]
[1741594278345,2.0036,127.6,127.57,28.58]
[1741594278545,9.8407,127.6,127.56,28.64]
[1741594278740,2.0036,127.6,127.54,28.64]
[1741594278938,2.14495624,127.59,127.54,28.64]
[1741594279134,2.14495624,127.59,127.55,7.8395]
[1741594279442,2.14495624,127.59,127.54,28.64]
[1741594279443,30.84495624,127.59,127.52,28.7]
[1741594279833,2.14495624,127.59,127.52,28.7]
[1741594280143,2.14495624,127.59,127.53,19.9432348]
[1741594281139,2.14495624,127.59,127.52,28.7]
[1741594281342,9.98245624,127.59,127.53,7.8405]
[1741594281543,2.14495624,127.59,127.53,19.9432348]
[1741594282046,22.08819104,127.59,127.52,28.7]
[1741594282342,22.08819104,127.59,127.51,28.74]
[1741594282544,7.8383,127.58,127.51,48.6832348]
[1741594282747,0.05298801,127.56,127.51,48.6832348]
[1741594283141,0.05298801,127.56,127.53,7.8408]
[1741594283448,0.05298801,127.56,127.51,48.6832348]
[1741594283649,0.05298801,127.56,127.51,56.5253348]
[1741594283843,0.05298801,127.56,127.51,19.9432348]
[1741594284144,0.05298801,127.56,127.5,28.72]
[1741594284342,258.48,127.57,127.5,48.6632348]
[1741594284531,0.04960088,127.54,127.5,48.6632348]
[1741594285133,0.04960088,127.54,127.52,19.9432348]
[1741594285338,0.04960088,127.54,127.53,28.76]
[1741594287245,0.04960088,127.54,127.53,36.6011]
[1741594287541,0.04960088,127.54,127.53,28.76]
[1741594289640,258.48,127.57,127.53,30.7193]
[1741594289848,258.48,127.57,127.55,7.8395]
[1741594290052,258.48,127.57,127.56,28.74]
[1741594291350,258.48,127.57,127.56,36.5792]
[1741594293251,258.48,127.57,127.56,28.74]
[1741594293944,258.48,127.57,127.56,36.5792]
[1741594295147,258.48,127.57,127.56,56.5224348]
[1741594295148,196.48,127.57,127.56,56.5224348]
[1741594295452,0.05417313,127.58,127.56,48.6832348]
[1741594295654,0.05417313,127.58,127.57,7.8386]
[1741594296753,266.415,127.63,127.56,48.6832348]
[1741594296754,258.58,127.63,127.56,48.6832348]
[1741594296954,258.58,127.63,127.61,7.8358]
[1741594297153,258.58,127.63,127.61,28.8]
[1741594298050,258.633415,127.63,127.61,28.85289009]
[1741594298755,258.633415,127.63,127.61,36.68879009]
[1741594299052,258.633415,127.63,127.61,48.79612489]
[1741594299454,258.633415,127.63,127.61,56.63202489]
[1741594299956,258.633415,127.63,127.61,28.85289009]
[1741594300163,258.633415,127.63,127.59,28.78]
[1741594300554,260.649615,127.63,127.59,28.78]
[1741594300854,260.649615,127.63,127.57,28.78]
[1741594301053,260.5962,127.63,127.57,28.78]
[1741594301254,7.8359,127.62,127.57,28.78]
[1741594301454,0.05820018,127.61,127.59,0.05074667]
[1741594303855,0.05820018,127.61,127.59,7.88804667]
[1741594304259,0.05820018,127.61,127.6,28.72]
[1741594304461,0.05820018,127.61,127.6,36.5568]
[1741594305354,258.58,127.63,127.6,28.72]
[1741594305857,258.58,127.63,127.62,7.8356]
[1741594306662,0.05629747,127.64,127.63,7.8349]
[1741594306956,0.05629747,127.64,127.63,56.5181348]
[1741594307154,9.747e-05,127.64,127.63,56.5181348]
[1741594307349,258.54,127.68,127.66,7.8326]
[1741594307561,258.54,127.68,127.66,28.74]
[1741594307855,258.54,127.68,127.66,36.5728]
[1741594308360,258.58945181,127.68,127.66,28.79534195]
[1741594311059,258.58945181,127.68,127.66,0.05534195]
[1741594311565,266.42175181,127.68,127.66,0.05534195]
[1741594312054,258.58945181,127.68,127.66,0.05534195]
[1741594317569,258.58945181,127.68,127.66,7.88844195]
[1741594317764,258.58945181,127.68,127.66,0.05534195]
[1741594318065,258.58945181,127.68,127.66,19.99857675]
[1741594319469,0.04945181,127.68,127.67,7.8325]
[1741594321765,0.04945181,127.68,127.66,27.83157675]
[1741594321964,0.04945181,127.68,127.66,19.99857675]
[1741594322359,0.04945181,127.68,127.66,27.83137675]
[1741594322969,0.04945181,127.68,127.66,19.99857675]
[1741594323267,0.04945181,127.68,127.66,0.05534195]
[1741594324871,0.04945181,127.68,127.66,7.88824195]
[1741594325368,0.04945181,127.68,127.67,7.8325]
[1741594326664,0.04945181,127.68,127.66,7.88824195]
[1741594327168,0.04945181,127.68,127.66,0.05534195]
[1741594327368,0.04945181,127.68,127.67,7.8325]
[1741594327775,1.9665,127.72,127.71,7.83]
[1741594327967,258.42,127.74,127.71,28.5]
[1741594328364,258.42,127.74,127.71,36.3297]
[1741594328559,258.42,127.74,127.71,28.5]
[1741594328967,258.47109924,127.74,127.72,7.8291]
[1741594330568,258.47109924,127.74,127.71,56.32815875]
[1741594331669,258.47109924,127.74,127.71,48.49835875]
[1741594331972,258.47109924,127.74,127.71,28.55512395]
[1741594333069,266.29969924,127.74,127.71,28.55512395]
[1741594333267,258.47109924,127.74,127.71,28.55512395]
[1741594333662,258.47109924,127.74,127.72,7.8291]
[1741594335279,258.47109924,127.74,127.71,28.55512395]
[1741594337567,258.47109924,127.74,127.71,36.38502395]
[1741594337867,258.47109924,127.74,127.71,28.55512395]
[1741594339076,258.47109924,127.74,127.71,36.38512395]
[1741594340877,258.47109924,127.74,127.72,7.829]
[1741594341069,258.47109924,127.74,127.72,19.9432348]
[1741594341471,258.47109924,127.74,127.73,7.8288]
[1741594342278,0.05109924,127.74,127.73,7.8288]
[1741594349076,9.924e-05,127.74,127.73,7.8288]
[1741594349276,2.1256,127.82,127.73,23.8632348]
[1741594349475,2.1256,127.82,127.78,19.9432348]
[1741594349679,2.1256,127.82,127.79,28.6]
[1741594349877,2.1256,127.82,127.79,36.4248]
[1741594350073,2.1256,127.82,127.79,28.6]
[1741594350291,2.18162994,127.82,127.79,28.65996671]
[1741594350573,0.05602994,127.82,127.81,7.8239]
[1741594351173,258.24,127.86,127.8,22.0507348]
[1741594351380,258.24,127.86,127.82,19.9432348]
[1741594351684,258.24,127.86,127.83,28.62]
[1741594352384,258.29142628,127.86,127.83,28.67910863]
[1741594353191,258.29142628,127.86,127.83,22.26250863]
[1741594354289,258.29142628,127.86,127.83,30.08510863]
[1741594354994,258.29142628,127.86,127.84,19.9432348]
[1741594355288,0.05142628,127.86,127.85,7.8215]
[1741594355893,0.05142628,127.86,127.83,22.26250863]
[1741594356394,0.05142628,127.86,127.84,19.9432348]
[1741594356991,0.05142628,127.86,127.85,7.8215]
[1741594357190,0.05142628,127.86,127.84,19.9432348]
[1741594357593,0.05142628,127.86,127.84,27.7650348]
[1741594358493,0.05142628,127.86,127.84,19.9432348]
[1741594359498,0.05142628,127.86,127.83,22.26250863]
[1741594360096,0.05142628,127.86,127.83,30.08490863]
[1741594360695,0.05142628,127.86,127.83,22.26250863]
[1741594361193,0.05142628,127.86,127.84,7.8217]
[1741594362399,0.05142628,127.86,127.85,28.68]
[1741594362700,0.05142628,127.86,127.85,36.5015]
[1741594363097,0.05142628,127.86,127.85,28.68]
[1741594365199,7.87222628,127.86,127.84,28.68]
[1741594365501,0.05142628,127.86,127.84,28.68]
[1741594365697,7.87242628,127.86,127.84,28.68]
[1741594366304,0.05142628,127.86,127.84,28.68]
[1741594366801,0.05142628,127.86,127.85,7.8215]
[1741594369305,0.05142628,127.86,127.84,56.4452348]
[1741594371704,0.05142628,127.86,127.84,48.6232348]
[1741594372111,0.05142628,127.86,127.84,19.9432348]
[1741594372306,0.05142628,127.86,127.85,28.6]
[1741594373402,0.05142628,127.86,127.85,36.4215]
[1741594376316,0.05142628,127.86,127.85,28.6]
[1741594377210,1.9954,127.91,127.85,28.6]
[1741594377411,1.9954,127.91,127.89,7.8187]
[1741594377610,1.9954,127.91,127.89,36.3587]
[1741594378012,1.9954,127.91,127.9,7.8184]
[1741594378314,258.16,127.92,127.89,28.54]
[1741594378511,258.2172964,127.92,127.9,27.7614348]
[1741594378718,0.0572964,127.92,127.9,19.9432348]
[1741594379113,0.0572964,127.92,127.91,7.8178]
[1741594379820,262.0832,127.98,127.93,19.9432348]
[1741594380030,260.0769,127.98,127.94,28.52]
[1741594380215,260.0769,127.98,127.94,48.4632348]
[1741594380920,0.05899087,127.97,127.95,0.04968647]
[1741594385630,0.05899087,127.97,127.96,19.9432348]
[1741594387730,0.05899087,127.97,127.95,0.04968647]
[1741594387731,7.87319087,127.97,127.95,0.04968647]
[1741594388629,7.8147,127.96,127.95,0.04968647]
[1741594389328,7.87339087,127.97,127.95,0.04968647]
[1741594389515,0.05899087,127.97,127.95,0.04968647]
[1741594389721,0.05899087,127.97,127.96,28.44]
[1741594390129,48.3832348,128.05,127.96,28.44]
[1741594390130,259.9257,128.04,127.96,28.44]
[1741594390317,261.8533,128.04,128.0,19.9432348]
[1741594390518,261.8533,128.04,128.01,28.52]
[1741594390929,259.7876,128.04,128.01,28.52]
[1741594391128,4.1887,128.08,128.02,19.9432348]
[1741594391424,0.06010635,128.04,128.02,19.9432348]
[1741594391619,1.9276,128.09,128.02,19.9432348]
[1741594391816,1.9276,128.09,128.01,28.52]
[1741594391817,1.9276,128.09,128.05,19.9432348]
[1741594392021,1.9276,128.09,128.06,28.56]
[1741594392226,9.7345,128.09,128.05,28.56]
[1741594392425,1.9276,128.09,128.05,28.56]
[1741594392819,0.05438344,128.08,128.06,0.05816513]
[1741594393020,0.05438344,128.08,128.02,28.62]
[1741594393328,7.8085,128.07,128.02,28.62]
[1741594393722,0.05438344,128.08,128.02,28.62]
[1741594394325,7.8081,128.07,128.04,0.05880031]
[1741594394525,0.05438344,128.08,128.04,0.05880031]
[1741594395632,7.86218344,128.08,128.04,7.86860031]
[1741594395929,7.86218344,128.08,128.04,0.05880031]
[1741594396118,7.8085,128.07,128.04,0.05880031]
[1741594396429,0.05438344,128.08,128.04,0.05880031]
[1741594397017,0.05438344,128.08,128.02,28.62]
[1741594397217,7.8097,128.05,128.01,7.8115]
[1741594397426,1.9683,128.07,128.0,28.6]
[1741594397630,9.7766,128.07,128.03,7.8101]
[1741594397829,9.7766,128.07,128.01,19.9432348]
[1741594398027,1.9276,128.09,128.01,19.9432348]
[1741594398229,1.9276,128.09,128.07,7.8079]
[1741594398429,0.05501303,128.06,128.04,28.62]
[1741594398623,1.9276,128.09,128.07,0.05393916]
[1741594398824,1.9276,128.09,128.04,28.62]
[1741594398825,1.9276,128.09,128.05,7.8089]
[1741594399123,1.97820135,128.09,128.05,7.86056645]
[1741594399326,1.97820135,128.09,128.06,7.8084]
[1741594399629,1.97820135,128.09,128.05,0.05166645]
[1741594399830,1.97820135,128.09,128.05,7.86026645]
[1741594400032,1.97820135,128.09,128.05,0.05166645]
[1741594401228,7.8075,128.08,128.05,0.05166645]
[1741594401432,50.56143615,128.09,128.05,0.05166645]
[1741594401630,2.1363,128.07,128.02,28.64]
[1741594401833,2.1363,128.07,128.0,28.66]
[1741594402030,2.1363,128.07,128.01,19.9432348]
[1741594402432,7.809,128.06,128.02,7.811]
[1741594402736,0.0496562,128.05,128.03,0.05647061]
[1741594403229,7.8591562,128.05,128.03,0.05647061]
[1741594403435,0.0496562,128.05,128.03,0.05647061]
[1741594404334,7.8591562,128.05,128.03,0.05647061]
[1741594404535,0.0496562,128.05,128.03,0.05647061]
[1741594405634,0.0496562,128.05,128.03,28.67647061]
[1741594406227,7.8589562,128.05,128.03,28.67647061]
[1741594406430,0.0496562,128.05,128.03,28.67647061]
[1741594406731,7.8099,128.04,128.03,0.05647061]
[1741594409341,257.7096562,128.05,127.99,28.64]
[1741594409636,7.8119,128.01,127.99,28.64]
[1741594410240,7.8113,128.02,127.99,28.64]
[1741594410539,0.05022646,128.02,127.99,48.63663446]
[1741594410735,0.05022646,128.02,128.01,19.9432348]
[1741594410930,0.05022646,128.02,128.01,27.7549348]
[1741594411130,0.05022646,128.02,128.01,19.9432348]
[1741594412333,15.45265017,234.43,128.01,19.9432348]
[1741594412334,1.3593219,128.16,128.01,260.7107834]
[1741594412529,4.0092,128.17,128.04,19.9432348]
[1741594412839,4.0092,128.17,128.11,7.8052]
[1741594413035,4.0092,128.17,128.12,29.0]
[1741594413336,0.05226851,128.16,128.13,0.05030604]
[1741594413940,0.05226851,128.16,128.13,19.99354084]
[1741594414242,0.05226851,128.16,128.15,19.9432348]
[1741594414542,0.05226851,128.16,128.15,48.9232348]
[1741594414943,0.05226851,128.16,128.15,56.7263348]
[1741594415236,0.05226851,128.16,128.15,48.9232348]
[1741594416335,0.05226851,128.16,128.15,28.98]
[1741594416638,42.801596,128.17,128.15,28.98]
[1741594416939,257.66,128.2,128.16,31.53964562]
[1741594417237,257.66,128.2,128.15,28.98]
[1741594417738,0.05659763,128.19,128.16,0.05663548]
[1741594417932,1.9258,128.25,128.15,28.98]
[1741594418132,0.05397858,128.19,128.16,0.04942587]
[1741594418329,60.53964562,128.22,128.15,29.0]
[1741594418540,2.04821662,128.19,128.16,0.05324483]
[1741594419135,0.06011662,128.19,128.16,0.05324483]
[1741594419336,0.06011662,128.19,128.16,7.85564483]
[1741594420140,0.06011662,128.19,128.16,0.05324483]
[1741594423537,7.8019,128.17,128.16,0.05324483]
[1741594424033,7.803,128.16,128.11,29.06]
[1741594424234,7.803,128.16,128.1,29.06]
[1741594424434,1.9973,128.18,128.11,7.8055]
[1741594424635,1.9973,128.18,128.1,29.06]
[1741594425243,7.8041,128.14,128.13,0.05950693]
[1741594425440,29.13010899,128.15,128.08,29.08]
[1741594425635,29.13010899,128.15,128.06,60.61964562]
[1741594425636,7.8057,128.11,128.06,60.61964562]
[1741594426438,1.9842,128.13,128.06,60.61964562]
[1741594426641,0.06011007,128.1,128.07,0.0493537]
[1741594428541,7.86651007,128.1,128.07,0.0493537]
[1741594428845,0.06011007,128.1,128.07,0.0493537]
[1741594429049,7.8069,128.09,128.07,0.0493537]
[1741594429246,0.06011007,128.1,128.07,0.0493537]
[1741594430347,7.86651007,128.1,128.07,0.0493537]
[1741594430648,259.4414,128.17,128.09,31.53964562]
[1741594430844,259.4414,128.17,128.11,31.53964562]
[1741594431049,7.8029,128.16,128.11,60.75964562]
[1741594431244,259.4414,128.17,128.11,60.75964562]
[1741594431442,259.4414,128.17,128.11,68.56484562]
[1741594431644,0.05573333,128.15,128.13,0.0529885]
[1741594433052,7.85943333,128.15,128.13,0.0529885]
[1741594433748,0.05573333,128.15,128.13,0.0529885]
[1741594437950,7.85923333,128.15,128.13,0.0529885]
[1741594440160,7.8038,128.14,128.13,0.0529885]
[1741594440361,0.05573333,128.15,128.09,29.12]
[1741594440556,0.05573333,128.15,128.08,21.79624489]
[1741594440753,0.05573333,128.15,128.08,19.72724489]
[1741594440958,19.78297822,128.15,128.06,19.72724489]
[1741594441261,7.8056,128.11,128.06,19.72724489]
[1741594441455,7.8056,128.11,128.09,0.05262667]
[1741594441654,0.0594106,128.12,128.09,0.05262667]
[1741594441851,7.8647106,128.12,128.09,0.05262667]
[1741594442059,0.0594106,128.12,128.09,0.05262667]
[1741594443561,7.8645106,128.12,128.09,0.05262667]
[1741594444365,0.0594106,128.12,128.09,0.05262667]
[1741594447570,2.1064106,128.12,128.09,0.05262667]
[1741594448467,2.1064106,128.12,128.06,7.8086]
[1741594448666,7.8065,128.1,128.06,7.8086]
[1741594448874,4.0403,128.12,128.05,36.8889]
[1741594449171,4.0403,128.12,128.05,29.08]
[1741594449373,7.8065,128.1,128.05,29.08]
[1741594449572,7.8608305,128.1,128.07,0.04977216]
[1741594449773,0.0543305,128.1,128.07,0.04977216]
[1741594450073,7.8605305,128.1,128.07,0.04977216]
[1741594451668,0.0543305,128.1,128.07,0.04977216]
[1741594451873,7.8072,128.09,128.07,0.04977216]
[1741594452262,0.0543305,128.1,128.07,0.04977216]
[1741594452575,7.8607305,128.1,128.07,0.04977216]
[1741594453977,7.8069,128.09,128.07,0.04977216]
[1741594455077,7.8608305,128.1,128.07,0.04977216]
[1741594455775,0.0543305,128.1,128.07,0.04977216]
[1741594456371,0.0543305,128.1,128.07,31.62942718]
[1741594456772,0.0543305,128.1,128.07,39.43732718]
[1741594457176,0.0543305,128.1,128.07,31.62942718]
[1741594457372,7.8610305,128.1,128.07,31.62942718]
[1741594457874,7.8606305,128.1,128.07,31.62942718]
[1741594458077,0.0543305,128.1,128.07,0.04977216]
[1741594458971,0.0543305,128.1,128.07,7.85747216]
[1741594459183,0.0543305,128.1,128.07,0.04977216]
[1741594461288,29.0143305,128.1,128.01,33.59515502]
[1741594461489,30.9159,128.1,127.99,46.7847274]
[1741594461786,30.9159,128.1,127.99,29.0]
[1741594462183,62.49555502,128.1,127.99,29.0]
[1741594462377,0.05079576,128.06,128.03,0.04935798]
[1741594462579,29.0,128.05,127.98,31.57965502]
[1741594462784,1.947,128.04,127.98,31.57965502]
[1741594463084,257.54,128.03,127.98,31.57965502]
[1741594463284,7.8114,128.02,127.98,31.57965502]
[1741594463789,257.54,128.03,127.98,31.57965502]
[1741594463790,0.05149445,128.01,127.99,0.05369109]